{"text_format":"3","workbook":"xlsx","n_sheets":4,"sheets":["Milestones","Roadmap","About","Chart data"],"not_rendered":{"charts":1,"defined_names":2},"read":"whole","date_system":"1900"}

{"sheet":"Milestones","index":0,"n_rows":27,"n_cols":5,"rows_kept":27}
["Create a Roadmap by entering important milestones and activities in this worksheet.\nThe title of this worksheet is in cell C1. \nInformation about how to use this worksheet, including instructions for screen readers is in the About worksheet.\nContinue navigating down column A for further instructions.",null,"Milestones"]
["Table headings are in cells C2 to E2. Use Sort & Filter options to sort or find specific entries.\nEnter Milestones with dates and set a position for charting the milestone, in the table starting in cell C3.\nColumn B has been hidden. The chart generated from this data using a scrollbar to view chunks of the timeline. Column B helps determine which Milestones to chart when the scrollbar is incremented. \nWarning: Deleting or modifying column B contents may disrupt the integrity of the charting built into this workbook.","No.","Position","Date","Milestone"]
["Enter the Position for charting the date and milestone in cell C1. Enter a positive number between 1 and 3 to chart the milestone above the timeline. Enter a negative number between 1 and 3 to chart the milestone below the timeline.\nEnter the Date and Milestone or activity in column D and E within the table.\nRepeat this pattern for each new row in the table at right.\nSample data is provided in rows 3 to 26. Modify or delete sample content to create your own roadmap.\nContinue to cell A27 for the next instruction.",{"$f":"ROW($A1)","v":1},1,{"$f":"TODAY()","v":"2018-06-27"},"Start"]
[null,{"$f":"ROW($A2)","v":2},-2,{"$f":"D3+10","v":"2018-07-07"},"Problem analysis\nactivity 1"]
[null,3,1,{"$f":"D4+20","v":"2018-07-27"},"Develop business case\nactivity 1\nactivity 2"]
[null,4,-1,{"$f":"D5+30","v":"2018-08-26"},"Review presentation"]
[null,5,{"v":-0.5,"d":"-1"},{"$f":"D6+40","v":"2018-10-05"},"Exec kick-off\nactivity 1\nactivity 2"]
[null,6,2,{"$f":"D7+50","v":"2018-11-24"},"Exec alignment\nactivity 1\nactivity 2\nactivity 3"]
[null,7,{"v":0.5,"d":"1"},{"$f":"D8+60","v":"2019-01-23"},"Stakeholder buy-in"]
[null,8,-1,{"$f":"D9+70","v":"2019-04-03"},"Resource selection"]
[null,9,{"v":0.5,"d":"1"},{"$f":"D10+80","v":"2019-06-22"},"Team creation\nactivity 1 "]
[null,10,-2,{"$f":"D11+90","v":"2019-09-20"},"Team kick-off\nactivity 1 \nactivity 2\nactivity 3\nactivity 4"]
[null,11,3,{"$f":"D12+100","v":"2019-12-29"},"Start data collection"]
[null,12,-1,{"$f":"D13+90","v":"2020-03-28"},"Data analysis"]
[null,13,1,{"$f":"D14+80","v":"2020-06-16"},"Design"]
[null,14,1,{"$f":"D15+70","v":"2020-08-25"},"Proof of concept"]
[null,15,-3,{"$f":"D16+60","v":"2020-10-24"},"Test & analysis"]
[null,16,-2,{"$f":"D17+50","v":"2020-12-13"},"Redesign"]
[null,17,2,{"$f":"D18+40","v":"2021-01-22"},"Redevelop"]
[null,18,-1,{"$f":"D19+30","v":"2021-02-21"},"Test & analysis"]
[null,19,1,{"$f":"D20+20","v":"2021-03-13"},"Redesign"]
[null,20,-3,{"$f":"D21+10","v":"2021-03-23"},"Redevelop"]
[null,21,2,{"$f":"D22+20","v":"2021-04-12"},"Final test"]
[null,22,1,{"$f":"D23+30","v":"2021-05-12"},"Beta test"]
[null,23,-3,{"$f":"D24+40","v":"2021-06-21"},"Review"]
[null,24,-2,{"$f":"D25+50","v":"2021-08-10"},"Release to Marketing"]
["To add more rows to the Roadmap Milestones table, simply insert a new row above this one.\nThere are no further instructions in this worksheet.",null,"To add more milestones, insert new rows above this line."]

{"sheet":"Roadmap","index":1,"n_rows":3,"n_cols":4,"rows_kept":3}
["A chart displaying the milestones from Milestones worksheet is in this worksheet. \nYears are indicated in cells B2, C2 and D2 and have the style Heading 3 applied.\n10 milestones are charted at a time. \nUse the scroll bar in cells B4 to D4 to navigate to the roadmap.\nTimeline years are in cells B3 to D3.\nThere are no further instructions in this worksheet."]
[]
[null,{"$f":"'Chart data'!B20","v":2018},{"$f":"'Chart data'!B21","v":""},{"$f":"'Chart data'!B22","v":2019}]

{"sheet":"About","index":2,"n_rows":5,"n_cols":1,"rows_kept":5}
["About this workbook"]
["Guide for screen readers"]
["There are 4 worksheets in this workbook. \n\nMilestones\nRoadmap\nAbout\nChart data (hidden)\n\nThe instructions for each worksheet are in the A column starting in cell A1 of each worksheet. They are written with hidden text. Each step guides you to the information in that row. Each subsequent step continues in cell A2, A3 and so on, unless otherwise explicitly directed. For example, instruction text might say “continue to cell A6” for the next step. \n\nHidden text will not print.\n\nTo remove these instructions from any worksheet, simply delete column A.\n"]
["This roadmap uses positions to chart milestones and activities. Positions can be used to add weight to a milestone or activity. Simply adjust the values according to your weight preference. For example, milestone/activity 3 might have more weight than milestone/activity 2. To indicate this on the chart, simply make the Position value higher for milestone/activity 3 than for milestone/activity 2.  \n"]
["This is the last instruction in this worksheet."]

{"sheet":"Chart data","index":3,"n_rows":26,"n_cols":4,"rows_kept":26,"hidden":true}
["Data for creating the dynamic charting is in this worksheet. Do not delete this worksheet!\nDeleting this worksheet could compromise the dynamic capability of the workbook.","Do not delete this worksheet!"]
["Title for the table is in cell B2.","Dynamic Chart content"]
["Table headings are in cells B3 to D3. \nThis table is auto-updated based on the content entered in the Milestones worksheet.\nWarning: Modifying or deleting content in this table could compromise the dynamic update capability of the Roadmap chart in the Roadmap worksheet.\nContinue to cell A15 for the next instruction.","Date","Events","Position"]
[null,{"$f":"IFERROR(IF(LEN(Milestones!D3)=0,\"\",INDEX(RoadmapMilestones[],Milestones!$B3+$B$17,3)),\"\")","v":"2018-06-27"},{"$f":"IFERROR(IF(LEN(Milestones!E3)=0,\"\",INDEX(RoadmapMilestones[],Milestones!$B3+$B$17,4)),\"\")","v":"Start"},{"$f":"IFERROR(INDEX(RoadmapMilestones[],Milestones!$B3+$B$17,2),\"\")","v":1}]
[null,{"$f":"IFERROR(IF(LEN(Milestones!D4)=0,\"\",INDEX(RoadmapMilestones[],Milestones!$B4+$B$17,3)),\"\")","v":"2018-07-07"},{"$f":"IFERROR(IF(LEN(Milestones!E4)=0,\"\",INDEX(RoadmapMilestones[],Milestones!$B4+$B$17,4)),\"\")","v":"Problem analysis\nactivity 1"},{"$f":"IFERROR(INDEX(RoadmapMilestones[],Milestones!$B4+$B$17,2),\"\")","v":-2}]
[null,{"$f":"IFERROR(IF(LEN(Milestones!D5)=0,\"\",INDEX(RoadmapMilestones[],Milestones!$B5+$B$17,3)),\"\")","v":"2018-07-27"},{"$f":"IFERROR(IF(LEN(Milestones!E5)=0,\"\",INDEX(RoadmapMilestones[],Milestones!$B5+$B$17,4)),\"\")","v":"Develop business case\nactivity 1\nactivity 2"},{"$f":"IFERROR(INDEX(RoadmapMilestones[],Milestones!$B5+$B$17,2),\"\")","v":1}]
[null,{"$f":"IFERROR(IF(LEN(Milestones!D6)=0,\"\",INDEX(RoadmapMilestones[],Milestones!$B6+$B$17,3)),\"\")","v":"2018-08-26"},{"$f":"IFERROR(IF(LEN(Milestones!E6)=0,\"\",INDEX(RoadmapMilestones[],Milestones!$B6+$B$17,4)),\"\")","v":"Review presentation"},{"$f":"IFERROR(INDEX(RoadmapMilestones[],Milestones!$B6+$B$17,2),\"\")","v":-1}]
[null,{"$f":"IFERROR(IF(LEN(Milestones!D7)=0,\"\",INDEX(RoadmapMilestones[],Milestones!$B7+$B$17,3)),\"\")","v":"2018-10-05"},{"$f":"IFERROR(IF(LEN(Milestones!E7)=0,\"\",INDEX(RoadmapMilestones[],Milestones!$B7+$B$17,4)),\"\")","v":"Exec kick-off\nactivity 1\nactivity 2"},{"$f":"IFERROR(INDEX(RoadmapMilestones[],Milestones!$B7+$B$17,2),\"\")","v":-0.5}]
[null,{"$f":"IFERROR(IF(LEN(Milestones!D8)=0,\"\",INDEX(RoadmapMilestones[],Milestones!$B8+$B$17,3)),\"\")","v":"2018-11-24"},{"$f":"IFERROR(IF(LEN(Milestones!E8)=0,\"\",INDEX(RoadmapMilestones[],Milestones!$B8+$B$17,4)),\"\")","v":"Exec alignment\nactivity 1\nactivity 2\nactivity 3"},{"$f":"IFERROR(INDEX(RoadmapMilestones[],Milestones!$B8+$B$17,2),\"\")","v":2}]
[null,{"$f":"IFERROR(IF(LEN(Milestones!D9)=0,\"\",INDEX(RoadmapMilestones[],Milestones!$B9+$B$17,3)),\"\")","v":"2019-01-23"},{"$f":"IFERROR(IF(LEN(Milestones!E9)=0,\"\",INDEX(RoadmapMilestones[],Milestones!$B9+$B$17,4)),\"\")","v":"Stakeholder buy-in"},{"$f":"IFERROR(INDEX(RoadmapMilestones[],Milestones!$B9+$B$17,2),\"\")","v":0.5}]
[null,{"$f":"IFERROR(IF(LEN(Milestones!D10)=0,\"\",INDEX(RoadmapMilestones[],Milestones!$B10+$B$17,3)),\"\")","v":"2019-04-03"},{"$f":"IFERROR(IF(LEN(Milestones!E10)=0,\"\",INDEX(RoadmapMilestones[],Milestones!$B10+$B$17,4)),\"\")","v":"Resource selection"},{"$f":"IFERROR(INDEX(RoadmapMilestones[],Milestones!$B10+$B$17,2),\"\")","v":-1}]
[null,{"$f":"IFERROR(IF(LEN(Milestones!D11)=0,\"\",INDEX(RoadmapMilestones[],Milestones!$B11+$B$17,3)),\"\")","v":"2019-06-22"},{"$f":"IFERROR(IF(LEN(Milestones!E11)=0,\"\",INDEX(RoadmapMilestones[],Milestones!$B11+$B$17,4)),\"\")","v":"Team creation\nactivity 1 "},{"$f":"IFERROR(INDEX(RoadmapMilestones[],Milestones!$B11+$B$17,2),\"\")","v":0.5}]
[null,{"$f":"IFERROR(IF(LEN(Milestones!D12)=0,\"\",INDEX(RoadmapMilestones[],Milestones!$B12+$B$17,3)),\"\")","v":"2019-09-20"},{"$f":"IFERROR(IF(LEN(Milestones!E12)=0,\"\",INDEX(RoadmapMilestones[],Milestones!$B12+$B$17,4)),\"\")","v":"Team kick-off\nactivity 1 \nactivity 2\nactivity 3\nactivity 4"},{"$f":"IFERROR(INDEX(RoadmapMilestones[],Milestones!$B12+$B$17,2),\"\")","v":-2}]
[]
["The ability to scroll to the roadmap is done with the help of an increment value. The title for this ability is in cell B15.\nA table with a header and a single value is in cells B16 and B17.\nContinue to cell A19 for the next instruction.","Scrolling capability"]
[null,"Row Increment"]
[null,0]
[]
["The Roadmap chart plots the years for the timeline. To do this, the years must be captured from the Milestone List. \nThe title for this section is “Year” in cell  B19. \nThe year values are auto-generated in cells C20 to C22.\nWarning: Deleting or modifying these years could change the charting accuracy of the Roadmap chart.\nContinue to cell A24 for the next instruction.","Year"]
[null,{"$f":"IFERROR(YEAR(B4),\"\")","v":2018},"<-- year for the starting position of the roadmap"]
[null,{"$f":"IFERROR(IF(YEAR($B$9)=$B$20,\"\",YEAR($B$9)),\"\")","v":""},"<-- year for the middle period of the roadmap, note, this may be blank if it’s the same year as the starting position of the roadmap"]
[null,{"$f":"IFERROR(IF(YEAR($B$13)=$B$20,\"\",YEAR($B$13)),\"\")","v":2019},"<-- year for the last position of the roadmap, note, this may be blank if it’s the same year as the starting position of the roadmap"]
[]
["Doughnut markers in the Roadmap chart contain dates from the dynamic chart content in this worksheet. The dates are First date in cell C24, Middle date in cell C25, and last date in cell C26.\nThere are no further instructions in this worksheet.","First date",{"$f":"B4","v":"2018-06-27"}]
[null,"Middle date",{"$f":"B9","v":"2018-11-24"}]
[null,"Last date",{"$f":"B13","v":"2019-09-20"}]